bitfinex-derivatives/quotes_BNBF0:USTF0_20230831
["timestamp","ask_amount","ask_price","bid_price","bid_amount"]
[1693525961183,0.07546059,216.67,215.77,0.16989973]
[1693525961384,0.07546059,216.67,215.74,5.0386821]
[1693525961385,0.07546059,216.67,215.75,0.16989973]
[1693525961685,0.07546059,216.67,215.76,0.16989973]
[1693525961885,0.07546059,216.67,215.77,0.16989973]
[1693525962080,0.07546059,216.67,215.78,0.16989973]
[1693525962282,0.07546059,216.67,215.79,0.16989973]
[1693525962485,0.07546059,216.67,215.73,0.16989973]
[1693525962687,0.07546059,216.67,215.74,0.16989973]
[1693525962882,0.07546059,216.67,215.73,0.16989973]
[1693525963087,0.07546059,216.67,215.74,0.16989973]
[1693525963287,0.07546059,216.67,215.73,0.16989973]
[1693525963485,0.07546059,216.67,215.74,0.16989973]
[1693525963684,0.07546059,216.67,215.75,0.16989973]
[1693525963886,0.07546059,216.67,215.76,0.16989973]
[1693525964087,0.07546059,216.67,215.77,0.16989973]
[1693525964388,0.07546059,216.67,215.78,0.16989973]
[1693525964588,0.07546059,216.67,215.79,0.16989973]
[1693525964790,0.07546059,216.67,215.8,0.16989973]
[1693525965090,0.07546059,216.67,215.81,0.16989973]
[1693525965288,0.07546059,216.67,215.72,0.16989973]
[1693525965487,0.07546059,216.67,215.73,0.16989973]
[1693525965687,0.07546059,216.67,215.72,0.16989973]
[1693525965884,0.07546059,216.67,215.73,0.16989973]
[1693525966088,0.07546059,216.67,215.74,0.16989973]
[1693525966389,0.07546059,216.67,215.75,0.16989973]
[1693525966589,0.07546059,216.67,215.72,0.16989973]
[1693525968593,0.07546059,216.67,215.73,0.16989973]
[1693525968793,0.07546059,216.67,215.71,0.16989973]
[1693525968991,0.07546059,216.67,215.72,0.16989973]
[1693525969186,0.07546059,216.67,215.73,0.16989973]
[1693525969391,0.07546059,216.67,215.74,0.16989973]
[1693525969689,0.50307064,216.71,215.62,7.054155]
[1693525969690,0.07546059,216.66,215.75,0.16989973]
[1693525969890,0.07546059,216.66,215.76,0.16989973]
[1693525970090,0.07546059,216.66,215.71,5.0386821]
[1693525970091,0.07546059,216.66,215.77,0.16989973]
[1693525970391,0.07546059,216.65,215.78,0.16989973]
[1693525970586,0.07546059,216.66,215.72,0.16989973]
[1693525970790,0.07546059,216.66,215.73,0.16989973]
[1693525970990,0.07546059,216.66,215.74,0.16989973]
[1693525971189,0.07546059,216.66,215.72,0.16989973]
[1693525971491,0.07546059,216.64,215.73,0.16989973]
[1693525971692,0.07546059,216.65,215.74,0.16989973]
[1693525972592,0.07546059,216.64,215.74,0.16989973]
[1693525972995,0.07546059,216.64,215.75,0.16989973]
[1693525973193,0.07546059,216.64,215.73,0.16989973]
[1693525973390,0.07546059,216.64,215.74,0.16989973]
[1693525973589,0.07546059,216.64,215.75,0.16989973]
[1693525973793,0.07546059,216.64,215.73,0.16989973]
[1693525973994,0.07546059,216.64,215.74,0.16989973]
[1693525974194,0.07546059,216.64,215.75,0.16989973]
[1693525974396,0.07546059,216.64,215.73,0.16989973]
[1693525974694,0.07546059,216.64,215.74,0.16989973]
[1693525974897,0.07546059,216.64,215.75,0.16989973]
[1693525975089,0.07546059,216.64,215.73,0.16989973]
[1693525975293,0.07546059,216.64,215.74,0.16989973]
[1693525975495,0.07546059,216.64,215.75,0.16989973]
[1693525975691,0.07546059,216.64,215.73,0.16989973]
[1693525975887,0.07546059,216.64,215.74,0.16989973]
[1693525976092,0.07546059,216.64,215.75,0.16989973]
[1693525976295,0.07546059,216.64,215.76,0.16989973]
[1693525976595,0.07546059,216.64,215.77,0.16989973]
[1693525976797,0.07546059,216.64,215.78,0.16989973]
[1693525977096,0.07546059,216.64,215.79,0.16989973]
[1693525977296,0.07546059,216.63,215.74,0.16989973]
[1693525977595,0.07546059,216.63,215.75,0.16989973]
[1693525977896,0.07546059,216.63,215.76,0.16989973]
[1693525978088,0.07546059,216.63,215.77,0.16989973]
[1693525978293,0.07546059,216.63,215.78,0.16989973]
[1693525978596,0.07546059,216.63,215.79,0.16989973]
[1693525978797,0.07546059,216.63,215.8,0.16989973]
[1693525978996,0.07546059,216.63,215.81,0.16989973]
[1693525979193,0.07546059,216.63,215.73,0.16989973]
[1693525979397,0.07546059,216.63,215.74,0.16989973]
[1693525981496,0.07546059,216.63,215.74,5.20858183]
[1693525981697,0.07546059,216.63,215.75,0.16989973]
[1693525982098,0.07546059,216.62,215.75,0.16989973]
[1693525984396,0.07546059,216.61,215.75,0.16989973]
[1693525984802,0.07546059,216.61,215.75,5.20858183]
[1693525985004,0.07546059,216.61,215.76,0.16989973]
[1693525986304,0.07546059,216.6,215.76,5.20858183]
[1693525986506,0.07546059,216.6,215.77,0.16989973]
[1693525988007,0.07546059,216.59,215.77,0.16989973]
[1693525988204,0.07546059,216.6,215.77,0.16989973]
[1693525988404,0.07546059,216.59,215.77,0.16989973]
[1693525989409,0.07546059,216.57,215.8,5.0386821]
[1693525989606,0.07546059,216.57,215.81,0.16989973]
[1693525994509,0.07546059,216.58,215.81,0.16989973]
[1693525996309,0.07546059,216.59,215.81,0.16989973]
[1693525997410,0.07546059,216.59,215.82,5.0386821]
[1693525997612,0.07546059,216.59,215.83,0.16989973]
[1693525998709,0.07546059,216.6,215.83,0.16989973]
[1693526002218,0.07546059,216.62,215.83,0.16989973]
[1693526002421,0.07546059,216.62,215.83,5.20858183]
[1693526002619,0.07546059,216.62,215.84,0.16989973]
[1693526003118,0.07546059,216.63,215.84,0.16989973]
[1693526008819,0.07546059,216.63,215.85,0.16989973]
[1693526009018,0.07546059,216.63,215.86,0.16989973]
[1693526009316,0.07546059,216.63,215.87,0.16989973]
[1693526009523,0.07546059,216.63,215.88,0.16989973]
[1693526009724,0.07546059,216.63,215.83,0.16989973]
[1693526009918,0.07546059,216.63,215.84,0.16989973]
[1693526010120,0.07546059,216.63,215.85,0.16989973]
[1693526010321,0.07546059,216.63,215.86,0.16989973]
[1693526010522,0.07546059,216.63,215.87,0.16989973]
[1693526010722,0.07546059,216.63,215.88,0.16989973]
[1693526010919,0.07546059,216.63,215.83,0.16989973]
[1693526011225,0.07546059,216.63,215.84,0.16989973]
[1693526011422,0.07546059,216.63,215.85,0.16989973]
[1693526011638,0.07546059,216.63,215.86,0.16989973]
[1693526011824,0.07546059,216.63,215.87,0.16989973]
[1693526012129,0.07546059,216.63,215.88,0.16989973]
[1693526012421,0.07546059,216.63,215.89,0.16989973]
[1693526012622,0.07546059,216.63,215.9,0.16989973]
[1693526012822,0.07546059,216.63,215.91,0.16989973]
[1693526013028,0.07546059,216.63,215.92,0.16989973]
[1693526013229,0.07546059,216.63,215.93,0.16989973]
[1693526013430,0.07546059,216.63,215.94,0.16989973]
[1693526013625,0.07546059,216.63,215.83,0.16989973]
[1693526013829,0.07546059,216.63,215.84,0.16989973]
[1693526014024,0.07546059,216.63,215.83,0.16989973]
[1693526014227,0.07546059,216.63,215.84,0.16989973]
[1693526014429,0.07546059,216.63,215.85,0.16989973]
[1693526014626,0.07546059,216.63,215.83,0.16989973]
[1693526014930,0.07546059,216.63,215.84,0.16989973]
[1693526015131,0.07546059,216.63,215.83,0.16989973]
[1693526015332,0.07546059,216.63,215.84,0.16989973]
[1693526015532,0.07546059,216.63,215.85,0.16989973]
[1693526015826,0.07546059,216.63,215.86,0.16989973]
[1693526016033,0.07546059,216.63,215.87,0.16989973]
[1693526016226,0.07546059,216.63,215.83,0.16989973]
[1693526016429,0.07546059,216.63,215.84,0.16989973]
[1693526016732,0.07546059,216.63,215.85,0.16989973]
[1693526016933,0.07546059,216.63,215.86,0.16989973]
[1693526017134,0.07546059,216.63,215.87,0.16989973]
[1693526017335,0.07546059,216.63,215.82,5.0386821]
[1693526017336,0.07546059,216.63,215.83,0.16989973]
[1693526017534,0.07546059,216.63,215.84,0.16989973]
[1693526017735,0.07546059,216.63,215.85,0.16989973]
[1693526017935,0.07546059,216.63,215.86,0.16989973]
[1693526018233,0.07546059,216.63,215.82,5.0386821]
[1693526018234,0.07546059,216.63,215.87,0.16989973]
[1693526018534,0.07546059,216.63,215.88,0.16989973]
[1693526018735,0.07546059,216.63,215.89,0.16989973]
[1693526018935,0.07546059,216.63,215.83,0.16989973]
[1693526019137,0.07546059,216.63,215.84,0.16989973]
[1693526019436,0.07546059,216.63,215.85,0.16989973]
[1693526019737,0.07546059,216.63,215.86,0.16989973]
[1693526020035,0.07546059,216.63,215.87,0.16989973]
[1693526020229,0.07546059,216.63,215.88,0.16989973]
[1693526020428,0.07546059,216.63,215.83,0.16989973]
[1693526020736,0.07546059,216.63,215.84,0.16989973]
[1693526020929,0.07546059,216.63,215.85,0.16989973]
[1693526021132,0.07546059,216.63,215.86,0.16989973]
[1693526021335,0.07546059,216.63,215.87,0.16989973]
[1693526021631,0.07546059,216.63,215.88,0.16989973]
[1693526021831,0.07546059,216.63,215.89,0.16989973]
[1693526022031,0.07546059,216.63,215.9,0.16989973]
[1693526022235,0.07546059,216.63,215.91,0.16989973]
[1693526022437,0.07546059,216.63,215.92,0.16989973]
[1693526022736,0.07546059,216.63,215.93,0.16989973]
[1693526022931,0.07546059,216.62,215.94,0.16989973]
[1693526023131,0.07546059,216.62,215.95,0.16989973]
[1693526023336,0.07546059,216.62,215.96,0.16989973]
[1693526023528,0.07546059,216.62,215.84,0.16989973]
[1693526023734,0.07546059,216.62,215.85,0.16989973]
[1693526023931,0.07546059,216.62,215.86,0.16989973]
[1693526024137,0.07546059,216.63,215.87,0.16989973]
[1693526024438,0.07546059,216.63,215.88,0.16989973]
[1693526024638,0.07546059,216.63,215.89,0.16989973]
[1693526024835,0.07546059,216.63,215.9,0.16989973]
[1693526025136,0.07546059,216.63,215.91,0.16989973]
[1693526025330,0.07546059,216.63,215.92,0.16989973]
[1693526025531,0.07546059,216.63,215.93,0.16989973]
[1693526025731,0.07546059,216.63,215.94,0.16989973]
[1693526025935,0.07546059,216.63,215.95,0.16989973]
[1693526026136,0.07546059,216.63,215.96,0.16989973]
[1693526026437,0.07546059,216.63,215.97,0.16989973]
[1693526026637,0.07546059,216.63,215.84,0.16989973]
[1693526026837,0.07546059,216.63,215.85,0.16989973]
[1693526027036,0.07546059,216.63,215.84,0.16989973]
[1693526027340,0.07546059,216.63,215.85,0.16989973]
[1693526027540,0.07546059,216.63,215.86,0.16989973]
[1693526027742,0.07546059,216.63,215.87,0.16989973]
[1693526027942,0.07546059,216.63,215.88,0.16989973]
[1693526028139,0.07546059,216.63,215.89,0.16989973]
[1693526028334,0.07546059,216.63,215.84,0.16989973]
[1693526028639,0.07546059,216.63,215.85,0.16989973]
[1693526028841,0.07546059,216.63,215.86,0.16989973]
[1693526029135,0.07546059,216.63,215.87,0.16989973]
[1693526029342,0.07546059,216.63,215.88,0.16989973]
[1693526029541,0.07546059,216.63,215.85,0.16989973]
[1693526029741,0.07546059,216.63,215.86,0.16989973]
[1693526029936,0.07546059,216.62,215.85,0.16989973]
[1693526030241,0.07546059,216.63,215.86,0.16989973]
[1693526030440,0.07546059,216.63,215.85,0.16989973]
[1693526030642,0.07546059,216.63,215.86,0.16989973]
[1693526030942,0.07546059,216.63,215.87,0.16989973]
[1693526031141,0.07546059,216.62,215.88,0.16989973]
[1693526031334,0.07546059,216.62,215.85,0.16989973]
[1693526031539,0.07546059,216.62,215.86,0.16989973]
[1693526031735,0.07546059,216.62,215.85,0.16989973]
[1693526031943,0.07546059,216.62,215.86,0.16989973]
[1693526032137,0.07546059,216.62,215.87,0.16989973]
[1693526032336,0.07546059,216.62,215.85,0.16989973]
[1693526032642,0.07546059,216.62,215.86,0.16989973]
[1693526032841,0.07546059,216.62,215.85,0.16989973]
[1693526033043,0.07546059,216.62,215.86,0.16989973]
[1693526033243,0.07546059,216.62,215.87,0.16989973]
[1693526033538,0.07546059,216.62,215.88,0.16989973]
[1693526033739,0.07546059,216.62,215.89,0.16989973]
[1693526033935,0.07546059,216.62,215.85,0.16989973]
[1693526034140,0.07546059,216.62,215.86,0.16989973]
[1693526034341,0.07546059,216.62,215.87,0.16989973]
[1693526034542,0.07546059,216.61,215.85,0.16989973]
[1693526034840,0.07546059,216.61,215.86,0.16989973]
[1693526035038,0.07546059,216.61,215.85,0.16989973]
[1693526035242,0.07546059,216.61,215.86,0.16989973]
[1693526035438,0.07546059,216.61,215.87,0.16989973]
[1693526035643,0.07546059,216.61,215.85,0.16989973]
[1693526035844,0.07546059,216.61,215.86,0.16989973]
[1693526036042,0.07546059,216.61,215.87,0.16989973]
[1693526036245,0.07546059,216.61,215.85,0.16989973]
[1693526036445,0.07546059,216.61,215.86,0.16989973]
[1693526036746,0.07546059,216.61,215.87,0.16989973]
[1693526036945,0.07546059,216.61,215.85,0.16989973]
[1693526037145,0.07546059,216.61,215.86,0.16989973]
[1693526037446,0.07546059,216.61,215.84,5.0386821]
[1693526037447,0.07546059,216.61,215.87,0.16989973]
[1693526037641,0.07546059,216.61,215.85,0.16989973]
[1693526050852,0.07546059,216.6,215.85,0.16989973]
[1693526051154,0.07546059,216.61,215.85,0.16989973]
[1693526066869,0.07546059,216.61,215.85,5.20858183]
[1693526067069,0.07546059,216.61,215.86,0.16989973]
[1693526072971,0.07546059,216.62,215.86,0.16989973]
[1693526080176,0.07546059,216.63,215.86,0.16989973]
[1693526080377,0.07546059,216.62,215.86,0.16989973]
[1693526082077,3.4741101,216.99,215.86,0.16989973]
[1693526082280,0.07557638,216.62,215.87,0.16989973]
[1693526082577,0.07557638,216.62,215.88,0.16989973]
[1693526082778,0.07557638,216.62,215.85,5.0467595]
[1693526082779,0.07557638,216.62,215.89,0.16989973]
[1693526082972,0.07557638,216.62,215.9,0.16989973]
[1693526083175,0.07557638,216.62,215.91,0.16989973]
[1693526083376,0.07557638,216.62,215.85,0.16989973]
[1693526083577,0.07557638,216.62,215.86,0.16989973]
[1693526083873,0.07557638,216.62,215.87,0.16989973]
[1693526084079,0.07557638,216.62,215.88,0.16989973]
[1693526084277,0.07557638,216.62,215.85,0.16989973]
[1693526084478,0.07557638,216.62,215.86,0.16989973]
[1693526084678,0.07557638,216.62,215.87,0.16989973]
[1693526084875,0.07557638,216.62,215.88,0.16989973]
[1693526085077,0.07557638,216.62,215.89,0.16989973]
[1693526085279,0.07557638,216.62,215.85,0.16989973]
[1693526085478,0.07557638,216.62,215.86,0.16989973]
[1693526085675,0.07557638,216.62,215.85,0.16989973]
[1693526085880,0.07557638,216.62,215.86,0.16989973]
[1693526086078,0.07557638,216.62,215.87,0.16989973]
[1693526086382,0.07557638,216.62,215.88,0.16989973]
[1693526086581,0.07557638,216.62,215.89,0.16989973]
[1693526086780,0.07557638,216.62,215.85,0.16989973]
[1693526086980,0.07557638,216.62,215.86,0.16989973]
[1693526087180,0.07557638,216.62,215.85,0.16989973]
[1693526087384,0.07557638,216.62,215.86,0.16989973]
[1693526087682,0.07557638,216.61,215.87,0.16989973]
[1693526087880,0.07557638,216.61,215.85,0.16989973]
[1693526088081,0.07557638,216.61,215.84,5.0467595]
[1693526088082,0.07557638,216.61,215.86,0.16989973]
[1693526088276,0.07557638,216.62,215.87,0.16989973]
[1693526088482,0.07557638,216.62,215.88,0.16989973]
[1693526088785,0.07557638,216.62,215.89,0.16989973]
[1693526088979,0.07557638,216.62,215.85,0.16989973]
[1693526089177,0.07557638,216.62,215.86,0.16989973]
[1693526089383,0.07557638,216.62,215.85,0.16989973]
[1693526089582,0.07557638,216.62,215.84,5.0467595]
[1693526089583,0.07557638,216.62,215.86,0.16989973]
[1693526089783,0.07557638,216.62,215.87,0.16989973]
[1693526090083,0.07557638,216.62,215.88,0.16989973]
[1693526090280,0.07557638,216.62,215.85,0.16989973]
[1693526090481,0.07557638,216.62,215.86,0.16989973]
[1693526090681,0.07557638,216.62,215.87,0.16989973]
[1693526090884,0.07557638,216.62,215.88,0.16989973]
[1693526091086,0.07557638,216.62,215.85,0.16989973]
[1693526091384,0.07557638,216.62,215.86,0.16989973]
[1693526091587,0.07557638,216.62,215.87,0.16989973]
[1693526091787,0.07557638,216.62,215.88,0.16989973]
[1693526091987,0.07557638,216.62,215.85,0.16989973]
[1693526092184,0.07557638,216.62,215.86,0.16989973]
[1693526092488,0.07557638,216.62,215.87,0.16989973]
[1693526092682,0.07557638,216.62,215.85,0.16989973]
[1693526092885,0.07557638,216.62,215.86,0.16989973]
[1693526093080,0.07557638,216.62,215.87,0.16989973]
[1693526093283,0.07557638,216.62,215.85,0.16989973]
[1693526093485,0.07557638,216.62,215.84,5.0467595]
[1693526093486,0.07557638,216.62,215.86,0.16989973]
[1693526093683,0.07557638,216.62,215.87,0.16989973]
[1693526093887,0.07557638,216.62,215.85,0.16989973]
[1693526095388,0.07557638,216.62,215.85,5.21665923]
[1693526095689,0.07557638,216.62,215.86,0.16989973]
[1693526096082,0.07557638,216.62,215.85,0.16989973]
[1693526096281,0.07557638,216.62,215.86,0.16989973]
[1693526096487,0.07557638,216.62,215.87,0.16989973]
[1693526096688,0.07557638,216.62,215.85,0.16989973]
[1693526096883,0.07557638,216.62,215.86,0.16989973]
[1693526097088,0.07557638,216.62,215.87,0.16989973]
[1693526097288,0.07557638,216.62,215.85,0.16989973]
[1693526097486,0.07557638,216.62,215.86,0.16989973]
[1693526097681,0.07557638,216.62,215.85,0.16989973]
[1693526097888,0.07557638,216.62,215.86,0.16989973]
[1693526098089,0.07557638,216.62,215.87,0.16989973]
[1693526098286,0.07557638,216.62,215.85,0.16989973]
[1693526098488,0.07557638,216.62,215.86,0.16989973]
[1693526098687,0.07557638,216.62,215.85,0.16989973]
[1693526098889,0.07557638,216.62,215.86,0.16989973]
[1693526099087,0.07557638,216.62,215.87,0.16989973]
[1693526099385,0.07557638,216.61,215.88,0.16989973]
[1693526099584,0.07557638,216.61,215.85,0.16989973]
[1693526099789,0.07557638,216.61,215.86,0.16989973]
[1693526099988,0.07557638,216.61,215.85,0.16989973]
[1693526100189,0.07557638,216.61,215.86,0.16989973]
[1693526100385,0.07557638,216.61,215.87,0.16989973]
[1693526100589,0.07557638,216.61,215.85,0.16989973]
[1693526100788,0.07557638,216.61,215.86,0.16989973]
[1693526101090,0.07557638,216.61,215.87,0.16989973]
[1693526101391,0.07557638,216.61,215.88,0.16989973]
[1693526101591,0.07557638,216.61,215.85,0.16989973]
[1693526101790,0.07557638,216.61,215.86,0.16989973]
[1693526102090,0.07557638,216.61,215.87,0.16989973]
[1693526102285,0.07557638,216.61,215.88,0.16989973]
[1693526102486,0.07557638,216.61,215.89,0.16989973]
[1693526102691,0.07557638,216.61,215.85,0.16989973]
[1693526102884,0.07557638,216.61,215.84,5.0467595]
[1693526102885,0.07557638,216.61,215.86,0.16989973]
[1693526103085,0.07557638,216.61,215.87,0.16989973]
[1693526103289,0.07557638,216.61,215.85,0.16989973]
[1693526103592,0.07557638,216.6,215.86,0.16989973]
[1693526103793,0.07557638,216.6,215.84,0.16989973]
[1693526103992,0.07557638,216.6,215.85,0.16989973]
[1693526104290,0.07557638,216.6,215.86,0.16989973]
[1693526104493,0.07557638,216.61,215.84,0.16989973]
[1693526104687,0.07557638,216.61,215.85,0.16989973]
[1693526104886,0.07557638,216.61,215.86,0.16989973]
[1693526105092,0.07557638,216.61,215.84,0.16989973]
[1693526105286,0.07557638,216.61,215.85,0.16989973]
[1693526105491,0.07557638,216.61,215.86,0.16989973]
[1693526105685,0.07557638,216.61,215.84,0.16989973]
[1693526105991,0.07557638,216.61,215.85,0.16989973]
[1693526106193,0.07557638,216.61,215.84,0.16989973]
[1693526106392,0.07557638,216.61,215.85,0.16989973]
[1693526106590,0.07557638,216.61,215.86,0.16989973]
[1693526106790,0.07557638,216.61,215.84,0.16989973]
[1693526106993,0.07557638,216.61,215.85,0.16989973]
[1693526107193,0.07557638,216.61,215.84,0.16989973]
[1693526107393,0.07557638,216.61,215.85,0.16989973]
[1693526107694,0.07557638,216.61,215.86,0.16989973]
[1693526107894,0.07557638,216.61,215.87,0.16989973]
[1693526108095,0.07557638,216.6,215.88,0.16989973]
[1693526108291,0.07557638,216.61,215.89,0.16989973]
[1693526108496,0.07557638,216.61,215.9,0.16989973]
[1693526108689,0.07557638,216.61,215.83,5.0467595]
[1693526108690,0.07557638,216.61,215.91,0.16989973]
[1693526108892,0.07557638,216.61,215.92,0.16989973]
[1693526109092,0.07557638,216.61,215.84,0.16989973]
[1693526109298,0.07557638,216.61,215.85,0.16989973]
[1693526109591,0.07557638,216.61,215.86,0.16989973]
[1693526109797,0.07557638,216.61,215.87,0.16989973]
[1693526109990,0.07557638,216.61,215.88,0.16989973]
[1693526110192,0.07557638,216.61,215.82,5.0467595]
[1693526110193,0.07557638,216.61,215.89,0.16989973]
[1693526110390,0.07557638,216.61,215.83,5.21665923]
[1693526110594,0.07557638,216.61,215.84,0.16989973]
[1693526113000,0.07557638,216.61,215.85,0.16989973]
[1693526113195,0.07557638,216.61,215.86,0.16989973]
[1693526113396,0.07557638,216.61,215.87,0.16989973]
[1693526113597,0.07557638,216.61,215.88,0.16989973]
[1693526113797,0.07557638,216.61,215.83,0.16989973]
[1693526115401,0.07557638,216.61,215.83,5.21665923]
[1693526115599,0.07557638,216.61,215.84,0.16989973]
[1693526116299,0.15115276,216.63,215.84,0.16989973]
[1693526116300,0.07557638,216.62,215.84,0.16989973]
[1693526117403,0.07557638,216.62,215.84,5.21665923]
[1693526117701,0.07557638,216.62,215.85,0.16989973]
[1693526129102,0.07557638,216.61,215.85,0.16989973]
[1693526129303,0.07557638,216.61,215.86,0.16989973]
[1693526129500,0.07557638,216.61,215.87,0.16989973]
[1693526129704,0.07557638,216.61,215.88,0.16989973]
[1693526129908,0.07557638,216.61,215.89,0.16989973]
[1693526130107,0.07557638,216.61,215.9,0.16989973]
[1693526130408,0.07557638,216.61,215.91,0.16989973]
[1693526130608,0.07557638,216.61,215.92,0.16989973]
[1693526130809,0.07557638,216.61,215.93,0.16989973]
[1693526131009,0.07557638,216.61,215.94,0.16989973]
[1693526131206,0.07557638,216.61,215.84,0.16989973]
[1693526131409,0.07557638,216.61,215.85,0.16989973]
[1693526131610,0.07557638,216.61,215.86,0.16989973]
[1693526131910,0.07557638,216.61,215.87,0.16989973]
[1693526132110,0.07557638,216.61,215.88,0.16989973]
[1693526132310,0.07557638,216.61,215.89,0.16989973]
[1693526132506,0.07557638,216.61,215.84,0.16989973]
[1693526132712,0.07557638,216.61,215.85,0.16989973]
[1693526136011,0.07557638,216.62,215.85,0.16989973]
[1693526136412,0.07557638,216.61,215.85,0.16989973]
[1693526137011,0.07557638,216.62,215.85,0.16989973]
[1693526137216,0.07557638,216.61,215.85,0.16989973]
[1693526141319,0.07557638,216.62,215.85,0.16989973]
[1693526141618,0.07557638,216.63,215.85,0.16989973]
[1693526141812,0.07557638,216.62,215.85,0.16989973]
[1693526142213,0.07557638,216.62,215.85,5.21665923]
[1693526142518,0.07557638,216.62,215.86,0.16989973]
[1693526142718,0.07557638,216.63,215.86,0.16989973]
[1693526143920,0.07557638,216.63,215.87,0.16989973]
[1693526144121,0.07557638,216.63,215.88,0.16989973]
[1693526144321,0.07557638,216.63,215.89,0.16989973]
[1693526144622,0.07557638,216.63,215.9,0.16989973]
[1693526144922,0.07557638,216.63,215.91,0.16989973]
[1693526145117,0.07557638,216.63,215.92,0.16989973]
[1693526145320,0.07557638,216.63,215.93,0.16989973]
[1693526145519,0.07557638,216.63,215.94,0.16989973]
[1693526145722,0.07557638,216.63,215.95,0.16989973]
[1693526145917,0.07557638,216.63,215.96,0.16989973]
[1693526146121,0.07557638,216.63,215.97,0.16989973]
[1693526146321,0.07557638,216.63,215.98,0.16989973]
[1693526146521,0.07557638,216.63,215.86,0.16989973]
[1693526146719,0.07557638,216.63,215.85,5.0467595]
[1693526146720,0.07557638,216.63,215.87,0.16989973]
[1693526146917,0.07557638,216.63,215.86,0.16989973]
[1693526147222,0.07557638,216.63,215.87,0.16989973]
[1693526147424,0.07557638,216.63,215.88,0.16989973]
[1693526147722,0.07557638,216.63,215.89,0.16989973]
[1693526147918,0.07557638,216.63,215.86,0.16989973]
[1693526148117,0.07557638,216.63,215.87,0.16989973]
[1693526148318,0.07557638,216.63,215.86,0.16989973]
[1693526148516,0.07557638,216.63,215.87,0.16989973]
[1693526148720,0.07557638,216.63,215.88,0.16989973]
[1693526148921,0.07557638,216.63,215.89,0.16989973]
[1693526149117,0.07557638,216.63,215.9,0.16989973]
[1693526149420,0.07557638,216.63,215.91,0.16989973]
[1693526149620,0.07557638,216.63,215.92,0.16989973]
[1693526149821,0.07557638,216.63,215.93,0.16989973]
[1693526150024,0.07557638,216.63,215.86,0.16989973]
[1693526150224,0.07557638,216.63,215.87,0.16989973]
[1693526150523,0.07557638,216.63,215.88,0.16989973]
[1693526150721,0.07557638,216.63,215.86,0.16989973]
[1693526151024,0.07557638,216.63,215.87,0.16989973]
[1693526151224,0.07557638,216.63,215.88,0.16989973]
[1693526151524,0.07557638,216.63,215.89,0.16989973]
[1693526151719,0.07557638,216.63,215.86,0.16989973]
[1693526151918,0.07557638,216.63,215.87,0.16989973]
[1693526152121,0.07557638,216.63,215.86,0.16989973]
[1693526152324,0.07557638,216.64,215.87,0.16989973]
[1693526152626,0.07557638,216.64,215.88,0.16989973]
[1693526152928,0.07557638,216.64,215.89,0.16989973]
[1693526153228,0.07557638,216.64,215.9,0.16989973]
[1693526153421,0.07557638,216.64,215.86,0.16989973]
[1693526153627,0.07557638,216.64,215.87,0.16989973]
[1693526153827,0.07557638,216.64,215.86,0.16989973]
[1693526154027,0.07557638,216.64,215.87,0.16989973]
[1693526154231,0.07557638,216.64,215.86,0.16989973]
[1693526154429,0.07557638,216.64,215.87,0.16989973]
[1693526154628,0.07557638,216.64,215.88,0.16989973]
[1693526154928,0.07557638,216.64,215.89,0.16989973]
[1693526155129,0.07557638,216.64,215.9,0.16989973]
[1693526155428,0.07557638,216.64,215.91,0.16989973]
[1693526155624,0.07557638,216.65,215.86,0.16989973]
[1693526155829,0.07557638,216.65,215.87,0.16989973]
[1693526156029,0.07557638,216.65,215.88,0.16989973]
[1693526156225,0.07557638,216.64,215.89,0.16989973]
[1693526156425,0.07557638,216.64,215.9,0.16989973]
[1693526156628,0.07557638,216.64,215.91,0.16989973]
[1693526156825,0.07557638,216.64,215.84,5.0467595]
[1693526156826,0.07557638,216.64,215.92,0.16989973]
[1693526157025,0.07557638,216.64,215.93,0.16989973]
[1693526157224,0.07557638,216.64,215.94,0.16989973]
[1693526157425,0.07557638,216.64,215.95,0.16989973]
[1693526157626,0.07557638,216.64,215.96,0.16989973]
[1693526157830,0.07557638,216.64,215.97,0.16989973]
[1693526158025,0.07557638,216.64,215.98,0.16989973]
[1693526158227,0.07557638,216.64,215.99,0.16989973]
[1693526158427,0.07557638,216.64,216.0,0.16989973]
[1693526158630,0.07557638,216.64,216.01,0.16989973]
[1693526158833,0.07557638,216.64,216.02,0.16989973]
[1693526159033,0.07557638,216.64,215.85,0.16989973]
[1693526159233,0.07557638,216.64,215.86,0.16989973]
[1693526159533,0.07557638,216.64,215.87,0.16989973]
[1693526159733,0.07557638,216.64,215.88,0.16989973]
[1693526159935,0.07557638,216.64,215.89,0.16989973]
[1693526160133,0.07557638,216.64,215.9,0.16989973]
[1693526160330,0.07557638,216.64,215.91,0.16989973]
[1693526160535,0.07557638,216.64,215.92,0.16989973]
[1693526160731,0.07557638,216.64,215.93,0.16989973]
[1693526160939,0.07557638,216.64,215.94,0.16989973]
[1693526161134,0.07557638,216.64,215.85,0.16989973]
[1693526161330,0.07557638,216.64,215.86,0.16989973]
[1693526161635,0.07557638,216.64,215.87,0.16989973]
[1693526161837,0.07557638,216.64,215.88,0.16989973]
[1693526162137,0.07557638,216.64,215.89,0.16989973]
[1693526162535,0.07557638,216.64,215.9,0.16989973]
[1693526162731,0.07557638,216.64,215.84,5.0467595]
[1693526162732,0.07557638,216.64,215.91,0.16989973]